[Event "Romania GP Final-Prel 2024"]
[Site "Alba Iulia"]
[Date "2024.11.25"]
[Round "4.1"]
[White "Dragomirescu, Angela"]
[Black "Stanciu, Alexandru-Ovidiu"]
[Result "0-1"]
[ECO "A45"]
[WhiteElo "2060"]
[BlackElo "2337"]
[Annotator "RC"]
[PlyCount "92"]
[EventDate "2024.11.22"]
[EventType "tourn"]
[EventCountry "ROU"]
[SourceTitle "playchess.com"]
[Source "ChessBase"]
[SourceQuality "1"]
[TimeControl "900+5"]

1. d4 {[%emt 0:00:03]} Nf6 {[%emt 0:00:07]} 2. Nc3 {[%emt 0:00:01]} e6 {[%emt 0:00:17]} 3. Bf4 {[%emt 0:00:48]} Bb4 {[%emt 0:00:16]} 4. Nf3 {[%emt 0:01:01]} O-O {[%emt 0:00:09]} 5. a3 {[%emt 0:00:51]} Bxc3+ {[%emt 0:01:22]} 6. bxc3 {[%emt 0:00:01]} b6 {[%emt 0:01:45]} 7. g3 {[%emt 0:01:15]} Bb7 {[%emt 0:01:11]} 8. Bg2 {[%emt 0:00:03]} d6 {[%emt 0:00:13]} 9. O-O {[%emt 0:00:15]} Nbd7 {[%emt 0:00:12]} 10. c4 {[%emt 0:01:18]} Qe7 {[%emt 0:00:40]} 11. c3 {[%emt 0:01:58]} h6 {[%emt 0:00:48]} 12. Re1 {[%emt 0:00:28]} Rab8 {[%emt 0:00:17]} 13. Qc2 {[%emt 0:01:20]} e5 {[%emt 0:00:38]} 14. Bc1 {[%emt 0:00:59]} Be4 {[%emt 0:00:19]} 15. Qa4 {[%emt 0:01:05]} Rfd8 {[%emt 0:01:27]} 16. Qb3 {[%emt 0:00:30]} Rdc8 {[%emt 0:02:57]} 17. Nh4 {[%emt 0:00:21]} Bh7 {[%emt 0:00:15]} 18. Bh3 {[%emt 0:00:53]} c5 {[%emt 0:00:05]} 19. dxe5 {[%emt 0:01:18]} Nxe5 {[%emt 0:01:08]} 20. Nf5 {[%emt 0:00:35]} Bxf5 {[%emt 0:00:25]} 21. Bxf5 {[%emt 0:00:01]} Rc7 {[%emt 0:00:04]} 22. Bf4 {[%emt 0:00:53]} g6 {[%emt 0:00:26]} 23. Bh3 {[%emt 0:00:07]} Kg7 {[%emt 0:00:27]} 24. Rad1 {[%emt 0:00:04]} Nh5 {[%emt 0:00:46]} 25. Bc1 {[%emt 0:00:10]} f5 {[%emt 0:00:19]} 26. Bg2 {[%emt 0:00:10]} Rf8 {[%emt 0:00:11]} 27. f4 {[%emt 0:00:07]} Nc6 {[%emt 0:00:10]} 28. e4 {[%emt 0:00:02]} Na5 {[%emt 0:00:02]} 29. Qa2 {[%emt 0:00:04]} Qf7 {[%emt 0:00:14]} 30. e5 {[%emt 0:00:33]} dxe5 {[%emt 0:00:12]} 31. Bd5 {[%emt 0:00:01]} Qe8 {[%emt 0:00:02]} 32. Rxe5 {[%emt 0:00:03]} Qd8 {[%emt 0:00:06]} 33. Qe2 {[%emt 0:00:18]} Rd7 {[%emt 0:00:02]} 34. Re1 {[%emt 0:00:02]} Nf6 {[%emt 0:00:08]} 35. Re7+ {[%emt 0:00:04]} Kh8 {[%emt 0:00:03]} 36. Qe6 {[%emt 0:00:12]} Rxe7 {[%emt 0:00:09]} 37. Qxe7 {[%emt 0:00:00]} Nxd5 {[%emt 0:00:03]} 38. cxd5 {[%emt 0:00:05]} Qxe7 {[%emt 0:00:03]} 39. Rxe7 {[%emt 0:00:00]} Rd8 {[%emt 0:00:02]} 40. Rxa7 {[%emt 0:00:20]} Rxd5 {[%emt 0:00:03]} 41. Be3 {[%emt 0:00:05]} Rd3 {[%emt 0:00:14]} 42. Kf2 {[%emt 0:00:03]} Nc4 {[%emt 0:00:02]} 43. Re7 {[%emt 0:00:06]} Rxc3 {[%emt 0:00:03]} 44. Re6 {[%emt 0:00:06]} Kg7 {[%emt 0:00:03]} 45. Re7+ {[%emt 0:00:04]} Kf6 {[%emt 0:00:02]} 46. Re8 {[%emt 0:00:02]} Kf7 {[%emt 0:00:03]} 0-1

[Event "Romania GP Final-Prel 2024"]
[Site "Alba Iulia"]
[Date "2024.11.25"]
[Round "4.2"]
[White "Kozak, Adam"]
[Black "Deac, Bogdan-Daniel"]
[Result "1/2-1/2"]
[ECO "D37"]
[WhiteElo "2591"]
[BlackElo "2687"]
[Annotator "TA"]
[PlyCount "29"]
[EventDate "2024.11.22"]
[EventType "tourn"]
[EventCountry "ROU"]
[SourceTitle "playchess.com"]
[Source "ChessBase"]
[SourceQuality "1"]
[TimeControl "900+5"]

{[%evp 11,29,13,15,16,19,27,21,20,24,18,32,18,19,17,19,23,31,29,25,11]} 1. d4 {[%emt 0:00:03]} Nf6 {[%emt 0:00:02]} 2. c4 {[%emt 0:00:01]} e6 {[%emt 0:00:01]} 3. Nf3 {[%emt 0:00:02]} d5 {[%emt 0:00:02]} 4. Nc3 {[%emt 0:00:02]} Be7 {[%emt 0:00:45]} 5. Bf4 {[%emt 0:00:32]} O-O {[%emt 0:00:09]} 6. e3 {[%emt 0:00:02]} Nbd7 {[%emt 0:00:15]} 7. a3 {[%emt 0:01:07]} c5 {[%emt 0:02:17]} 8. cxd5 {[%emt 0:03:36]} Nxd5 {[%emt 0:00:07]} 9. Nxd5 {[%emt 0:00:13] The position is equal.} exd5 {[%emt 0:00:02]} 10. dxc5 {[%emt 0:01:35]} Nxc5 {[%emt 0:00:09]} 11. Be5 {[%emt 0:04:24]} Bf6 {[%emt 0:03:50]} 12. Bxf6 {[%emt 0:01:08]} Qxf6 {[%emt 0:00:02]} 13. Qd4 {[%emt 0:00:02]} Qd6 {[%emt 0:00:27] [#] Hoping for ...Nb3.} 14. Rd1 {[%emt 0:02:06]} Rd8 {[%emt 0:00:17]} 15. Be2 {[%emt 0:00:26] Not much happened in this game.   Weighted Error Value: White=0.03 (flawless) /Black=0.02 (flawless) .  OK:         	White=2     	Black=2      Best:        	White=1     	---} 1/2-1/2

[Event "Romania GP Final-Prel 2024"]
[Site "Alba Iulia"]
[Date "2024.11.25"]
[Round "4.3"]
[White "Obada, Ema"]
[Black "Kantor, Gergely"]
[Result "0-1"]
[ECO "C06"]
[WhiteElo "2060"]
[BlackElo "2554"]
[Annotator "RC"]
[PlyCount "62"]
[EventDate "2024.11.22"]
[EventType "tourn"]
[EventCountry "ROU"]
[SourceTitle "playchess.com"]
[Source "ChessBase"]
[SourceQuality "1"]
[TimeControl "900+5"]

1. e4 {[%emt 0:00:02]} e6 {[%emt 0:00:02]} 2. d4 {[%emt 0:00:02]} d5 {[%emt 0:00:01]} 3. Nd2 {[%emt 0:00:02]} Be7 {[%emt 0:00:02]} 4. Ngf3 {[%emt 0:00:04]} Nf6 {[%emt 0:00:04]} 5. e5 {[%emt 0:00:02]} Nfd7 {[%emt 0:00:01]} 6. Bd3 {[%emt 0:00:04]} c5 {[%emt 0:00:13]} 7. c3 {[%emt 0:00:02]} Nc6 {[%emt 0:00:13]} 8. O-O {[%emt 0:00:07]} g5 {[%emt 0:00:04]} 9. Nb1 {[%emt 0:00:09]} h6 {[%emt 0:01:20]} 10. Be3 {[%emt 0:00:52]} Qb6 {[%emt 0:00:26]} 11. b3 {[%emt 0:06:03]} Nf8 {[%emt 0:01:32]} 12. Nbd2 {[%emt 0:00:47]} Bd7 {[%emt 0:00:21]} 13. Rb1 {[%emt 0:01:38]} cxd4 {[%emt 0:00:18]} 14. Bxd4 {[%emt 0:02:08]} Nxd4 {[%emt 0:00:25]} 15. Nxd4 {[%emt 0:00:03]} Rc8 {[%emt 0:02:24]} 16. Rc1 {[%emt 0:00:26]} Ng6 {[%emt 0:00:02]} 17. Re1 {[%emt 0:00:48]} O-O {[%emt 0:00:46]} 18. h3 {[%emt 0:02:03]} Kg7 {[%emt 0:00:10]} 19. N2f3 {[%emt 0:00:08]} Rc7 {[%emt 0:00:51]} 20. Qd2 {[%emt 0:00:52]} Rfc8 {[%emt 0:00:12]} 21. Qb2 {[%emt 0:00:06]} Nf4 {[%emt 0:00:26]} 22. Bf1 {[%emt 0:00:03]} f5 {[%emt 0:00:04]} 23. g3 {[%emt 0:00:19]} Ng6 {[%emt 0:00:04]} 24. Kg2 {[%emt 0:00:04]} h5 {[%emt 0:00:25]} 25. Bd3 {[%emt 0:00:04]} g4 {[%emt 0:00:01]} 26. hxg4 {[%emt 0:00:02]} hxg4 {[%emt 0:00:01]} 27. Nd2 {[%emt 0:00:11]} Bg5 {[%emt 0:00:33]} 28. Re2 {[%emt 0:00:05]} f4 {[%emt 0:00:19]} 29. Bxg6 {[%emt 0:00:03]} f3+ {[%emt 0:00:01]} 30. Kg1 {[%emt 0:00:06]} fxe2 {[%emt 0:00:06]} 31. Bd3 {[%emt 0:00:02]} Qxd4 {[%emt 0:00:07]} 0-1

[Event "Romania GP Final-Prel 2024"]
[Site "Alba Iulia"]
[Date "2024.11.25"]
[Round "4.4"]
[White "Gavrilescu, David"]
[Black "Manolache, Marius"]
[Result "1-0"]
[ECO "C02"]
[WhiteElo "2545"]
[BlackElo "2407"]
[Annotator "RC"]
[PlyCount "61"]
[EventDate "2024.11.22"]
[EventType "tourn"]
[EventCountry "ROU"]
[SourceTitle "playchess.com"]
[Source "ChessBase"]
[SourceQuality "1"]
[TimeControl "900+5"]

1. e4 {[%emt 0:00:03]} e6 {[%emt 0:00:01]} 2. d4 {[%emt 0:00:02]} d5 {[%emt 0:00:01]} 3. e5 {[%emt 0:00:05]} c5 {[%emt 0:00:01]} 4. c3 {[%emt 0:00:01]} Nc6 {[%emt 0:00:02]} 5. Nf3 {[%emt 0:00:02]} Qb6 {[%emt 0:00:17]} 6. Be2 {[%emt 0:00:02]} cxd4 {[%emt 0:00:11]} 7. cxd4 {[%emt 0:00:02]} Bd7 {[%emt 0:00:06]} 8. O-O {[%emt 0:00:04]} Nge7 {[%emt 0:00:10]} 9. Nc3 {[%emt 0:00:28]} Nf5 {[%emt 0:00:34]} 10. Na4 {[%emt 0:00:02]} Qd8 {[%emt 0:00:11]} 11. a3 {[%emt 0:00:12]} Be7 {[%emt 0:14:26]} 12. Kh1 O-O 13. g4 Nh6 14. Bxh6 gxh6 15. Rg1 Kh8 16. Nc5 Bxc5 17. dxc5 Rg8 18. Qd2 Qf8 19. b4 Ne7 20. Qf4 h5 21. g5 Qg7 22. Rae1 b6 23. Qd4 Ng6 24. Bd3 bxc5 25. bxc5 Rab8 26. Rb1 Bc6 27. a4 Rbc8 28. Rg3 Rb8 29. Rgg1 Ne7 30. Rxb8 Rxb8 31. Rb1 {[%emt 0:01:58]} 1-0

[Event "Romania GP Final-Prel 2024"]
[Site "Alba Iulia"]
[Date "2024.11.25"]
[Round "4.5"]
[White "Nedelcu, Teodor-Cosmin"]
[Black "Cnejev, Vladimir-Alexandru"]
[Result "1-0"]
[ECO "D53"]
[WhiteElo "2320"]
[BlackElo "2288"]
[Annotator "RC"]
[PlyCount "135"]
[EventDate "2024.11.22"]
[EventType "tourn"]
[EventCountry "ROU"]
[SourceTitle "playchess.com"]
[Source "ChessBase"]
[SourceQuality "1"]
[TimeControl "900+5"]

1. d4 {[%emt 0:00:00]} d5 {[%emt 0:00:03]} 2. c4 {[%emt 0:00:01]} e6 {[%emt 0:00:02]} 3. Nc3 {[%emt 0:00:02]} Nf6 {[%emt 0:00:02]} 4. Bg5 {[%emt 0:00:07]} Be7 {[%emt 0:00:06]} 5. e3 {[%emt 0:00:02]} h6 {[%emt 0:00:11]} 6. Bh4 {[%emt 0:00:22]} O-O {[%emt 0:00:12]} 7. cxd5 {[%emt 0:00:04]} Nxd5 {[%emt 0:01:53]} 8. Bxe7 {[%emt 0:00:01]} Qxe7 {[%emt 0:00:01]} 9. Nxd5 {[%emt 0:00:33]} exd5 {[%emt 0:00:02]} 10. Rc1 {[%emt 0:00:05]} Be6 {[%emt 0:01:52]} 11. Bd3 {[%emt 0:00:20]} b6 {[%emt 0:00:18]} 12. Ne2 {[%emt 0:00:23]} c5 {[%emt 0:00:12]} 13. O-O {[%emt 0:00:25]} Nd7 {[%emt 0:00:18]} 14. Bb1 {[%emt 0:00:19]} Nf6 {[%emt 0:00:42]} 15. dxc5 {[%emt 0:00:48]} bxc5 {[%emt 0:00:02]} 16. Nf4 {[%emt 0:00:05]} Rab8 {[%emt 0:01:22]} 17. b3 {[%emt 0:00:44]} a5 {[%emt 0:00:10]} 18. Qd2 {[%emt 0:00:47]} Rb4 {[%emt 0:01:30]} 19. Rfd1 {[%emt 0:01:03]} Rc8 {[%emt 0:00:47]} 20. Qc2 {[%emt 0:00:39]} g6 {[%emt 0:00:54]} 21. Qc3 {[%emt 0:01:18]} d4 {[%emt 0:03:55]} 22. exd4 {[%emt 0:00:15]} cxd4 {[%emt 0:00:03]} 23. Qd2 {[%emt 0:01:19]} Rxc1 {[%emt 0:00:43]} 24. Rxc1 {[%emt 0:00:28]} Qd6 {[%emt 0:00:21]} 25. Nxe6 {[%emt 0:01:14]} Qxe6 {[%emt 0:00:04]} 26. Qxh6 {[%emt 0:00:05]} Rb5 {[%emt 0:01:20]} 27. Bd3 {[%emt 0:01:23]} Re5 {[%emt 0:00:02]} 28. Qd2 {[%emt 0:00:02]} Kg7 {[%emt 0:00:10]} 29. h3 {[%emt 0:00:05]} Nh5 {[%emt 0:00:06]} 30. Rd1 {[%emt 0:00:25]} Qd6 {[%emt 0:00:05]} 31. Bc4 {[%emt 0:00:30]} Kg8 {[%emt 0:00:05]} 32. Bf1 {[%emt 0:00:50]} Rd5 {[%emt 0:00:05]} 33. Bc4 {[%emt 0:00:38]} Re5 {[%emt 0:00:02]} 34. g4 {[%emt 0:01:02]} Nf4 {[%emt 0:00:08]} 35. Bf1 {[%emt 0:00:23]} Ne6 {[%emt 0:00:03]} 36. Qd3 {[%emt 0:00:54]} Rd5 {[%emt 0:00:07]} 37. Qe4 {[%emt 0:00:09]} Re5 {[%emt 0:00:04]} 38. Qf3 {[%emt 0:00:02]} Kg7 {[%emt 0:00:06]} 39. Qg3 {[%emt 0:00:14]} Qc5 {[%emt 0:00:05]} 40. Bc4 {[%emt 0:00:08]} g5 {[%emt 0:00:05]} 41. Qd3 {[%emt 0:00:08]} Nf4 {[%emt 0:00:05]} 42. Qxd4 {[%emt 0:00:06]} Qxd4 {[%emt 0:00:04]} 43. Rxd4 {[%emt 0:00:01]} Re1+ {[%emt 0:00:06]} 44. Kh2 {[%emt 0:00:03]} Ra1 {[%emt 0:00:04]} 45. a4 {[%emt 0:00:07]} Ra2 {[%emt 0:00:02]} 46. Kg3 {[%emt 0:00:01]} Ra1 {[%emt 0:00:09]} 47. Rd7 {[%emt 0:00:07]} Rg1+ {[%emt 0:00:05]} 48. Kf3 {[%emt 0:00:01]} Nxh3 {[%emt 0:00:05]} 49. Rxf7+ {[%emt 0:00:04]} Kg6 {[%emt 0:00:04]} 50. Ra7 {[%emt 0:00:03]} Nf4 {[%emt 0:00:07]} 51. Ra6+ {[%emt 0:00:02]} Kg7 {[%emt 0:00:02]} 52. Rxa5 {[%emt 0:00:28]} Kg6 {[%emt 0:00:01]} 53. Ra6+ {[%emt 0:00:00]} Kg7 {[%emt 0:00:02]} 54. Rd6 {[%emt 0:00:00]} Ng6 {[%emt 0:00:04]} 55. Rd5 {[%emt 0:00:06]} Nh4+ {[%emt 0:00:04]} 56. Ke3 {[%emt 0:00:05]} Rxg4 {[%emt 0:00:02]} 57. Be2 {[%emt 0:00:05]} Rg1 {[%emt 0:00:06]} 58. a5 {[%emt 0:00:01]} Kf6 {[%emt 0:00:05]} 59. a6 {[%emt 0:00:01]} Nf5+ {[%emt 0:00:10]} 60. Kd2 {[%emt 0:00:01]} Ra1 {[%emt 0:00:09]} 61. b4 {[%emt 0:00:07]} Ra2+ {[%emt 0:00:03]} 62. Kd1 {[%emt 0:00:13]} Ra1+ {[%emt 0:00:09]} 63. Kd2 {[%emt 0:00:06]} Ra2+ {[%emt 0:00:01]} 64. Ke1 {[%emt 0:00:01]} Ra1+ {[%emt 0:00:06]} 65. Rd1 {[%emt 0:00:02]} Ra4 {[%emt 0:00:09]} 66. b5 {[%emt 0:00:05]} Nd4 {[%emt 0:00:06]} 67. Rxd4 {[%emt 0:00:15]} Rxd4 {[%emt 0:00:01]} 68. b6 {[%emt 0:00:02]} 1-0

[Event "Romania GP Final-Prel 2024"]
[Site "Alba Iulia"]
[Date "2024.11.25"]
[Round "4.6"]
[White "Secheres, Adrian-Simion"]
[Black "Ghimpu, Samuel-Timotei"]
[Result "0-1"]
[ECO "E62"]
[WhiteElo "2350"]
[BlackElo "2473"]
[Annotator "RC"]
[PlyCount "106"]
[EventDate "2024.11.22"]
[EventType "tourn"]
[EventCountry "ROU"]
[SourceTitle "playchess.com"]
[Source "ChessBase"]
[SourceQuality "1"]
[TimeControl "900+5"]

1. d4 {[%emt 0:00:02]} d6 {[%emt 0:00:09]} 2. Nf3 {[%emt 0:00:08]} Nf6 {[%emt 0:00:02]} 3. g3 {[%emt 0:00:09]} g6 {[%emt 0:00:06]} 4. Bg2 {[%emt 0:00:03]} Bg7 {[%emt 0:00:03]} 5. O-O {[%emt 0:00:03]} O-O {[%emt 0:00:04]} 6. Re1 {[%emt 0:00:02]} Bf5 {[%emt 0:00:50]} 7. c4 {[%emt 0:00:11]} c6 {[%emt 0:01:13]} 8. Nc3 {[%emt 0:00:02]} Ne4 {[%emt 0:00:05]} 9. Qb3 {[%emt 0:00:03]} Nxc3 {[%emt 0:00:16]} 10. bxc3 {[%emt 0:00:02]} Bc8 {[%emt 0:00:23]} 11. e4 {[%emt 0:01:04]} Nd7 {[%emt 0:02:00]} 12. h3 {[%emt 0:01:14]} Qc7 {[%emt 0:00:54]} 13. Bg5 {[%emt 0:01:01]} Re8 {[%emt 0:00:10]} 14. a4 {[%emt 0:00:45]} a5 {[%emt 0:00:24]} 15. Rab1 {[%emt 0:00:37]} b6 {[%emt 0:00:32]} 16. Qc2 {[%emt 0:01:26]} Ba6 {[%emt 0:00:39]} 17. Bf1 {[%emt 0:00:02]} e6 {[%emt 0:01:41]} 18. Qd2 {[%emt 0:01:49]} c5 {[%emt 0:01:15]} 19. Bf4 {[%emt 0:03:17]} e5 {[%emt 0:00:51]} 20. Bh6 {[%emt 0:00:02]} Nf6 {[%emt 0:00:58]} 21. Bxg7 {[%emt 0:01:04]} Kxg7 {[%emt 0:00:01]} 22. Nh4 {[%emt 0:01:17]} h6 {[%emt 0:01:14]} 23. Bd3 {[%emt 0:00:58]} Bc8 {[%emt 0:00:57]} 24. Kh2 {[%emt 0:00:36]} Bd7 {[%emt 0:00:01]} 25. Qd1 {[%emt 0:00:29]} cxd4 {[%emt 0:00:22]} 26. cxd4 {[%emt 0:00:02]} exd4 {[%emt 0:00:03]} 27. Nf3 {[%emt 0:00:06]} Qc5 {[%emt 0:00:10]} 28. Qb3 {[%emt 0:00:17]} Rab8 {[%emt 0:00:47]} 29. Qb2 {[%emt 0:00:02]} Bxa4 {[%emt 0:00:47]} 30. Nxd4 {[%emt 0:00:02]} Kg8 {[%emt 0:00:04]} 31. Re3 {[%emt 0:00:28]} Nd7 {[%emt 0:00:18]} 32. Ne2 {[%emt 0:00:11]} Ne5 {[%emt 0:00:07]} 33. Nf4 {[%emt 0:00:03]} Bc6 {[%emt 0:00:03]} 34. Rd1 {[%emt 0:00:06]} Nxd3 {[%emt 0:00:11]} 35. Rexd3 {[%emt 0:00:03]} Bxe4 {[%emt 0:00:09]} 36. Rxd6 {[%emt 0:00:02]} Qxc4 {[%emt 0:00:01]} 37. Rxb6 Rxb6 {[%emt 0:00:01]} 38. Qxb6 {[%emt 0:00:13]} a4 {[%emt 0:00:07]} 39. Rd4 {[%emt 0:00:09]} Qc1 {[%emt 0:00:10]} 40. Ng2 {[%emt 0:00:07]} Qf1 {[%emt 0:00:06]} 41. Rxe4 {[%emt 0:00:01]} Rxe4 {[%emt 0:00:01]} 42. Qb8+ {[%emt 0:00:07]} Kg7 {[%emt 0:00:04]} 43. Qb2+ {[%emt 0:00:02]} Kh7 {[%emt 0:00:04]} 44. Qf6 {[%emt 0:00:01]} Qc4 {[%emt 0:00:03]} 45. h4 {[%emt 0:00:05]} Qe6 {[%emt 0:00:05]} 46. Qf3 {[%emt 0:00:01]} h5 {[%emt 0:00:05]} 47. Nf4 {[%emt 0:00:02]} Qf5 {[%emt 0:00:02]} 48. Kg2 {[%emt 0:00:15]} Rb4 {[%emt 0:00:03]} 49. Kh2 {[%emt 0:00:04]} Rb3 {[%emt 0:00:16]} 50. Qc6 {[%emt 0:00:03]} a3 {[%emt 0:00:06]} 51. Nh3 {[%emt 0:00:02]} Rb2 {[%emt 0:00:06]} 52. Ng5+ {[%emt 0:00:02]} Kg7 {[%emt 0:00:01]} 53. Qc3+ {[%emt 0:00:01]} Qf6 {[%emt 0:00:02]} 0-1

[Event "Romania GP Final-Prel 2024"]
[Site "Alba Iulia"]
[Date "2024.11.25"]
[Round "4.7"]
[White "Lupulescu, Constantin"]
[Black "Santos Latasa, Jaime"]
[Result "1/2-1/2"]
[ECO "D38"]
[WhiteElo "2591"]
[BlackElo "2630"]
[Annotator "RC"]
[PlyCount "28"]
[EventDate "2024.11.22"]
[EventType "tourn"]
[EventCountry "ROU"]
[SourceTitle "playchess.com"]
[Source "ChessBase"]
[SourceQuality "1"]
[TimeControl "900+5"]

1. d4 {[%emt 0:00:01]} Nf6 {[%emt 0:00:03]} 2. c4 {[%emt 0:00:01]} e6 {[%emt 0:00:02]} 3. Nf3 {[%emt 0:00:02]} d5 {[%emt 0:00:01]} 4. Nc3 {[%emt 0:00:01]} Bb4 {[%emt 0:00:07]} 5. Qb3 {[%emt 0:00:04]} c5 {[%emt 0:00:16]} 6. dxc5 {[%emt 0:00:17]} Nc6 {[%emt 0:00:57]} 7. Bg5 {[%emt 0:00:25]} Qa5 {[%emt 0:00:46]} 8. Bxf6 {[%emt 0:00:02]} dxc4 {[%emt 0:00:02]} 9. Qxc4 {[%emt 0:00:01]} gxf6 {[%emt 0:00:02]} 10. Rc1 {[%emt 0:00:10]} Qxc5 {[%emt 0:00:05]} 11. Qh4 {[%emt 0:00:12]} Ke7 {[%emt 0:00:07]} 12. g3 {[%emt 0:00:03]} Bxc3+ {[%emt 0:00:12]} 13. Rxc3 {[%emt 0:00:02]} Qb4 {[%emt 0:00:06]} 14. Qxb4+ {[%emt 0:00:01]} Nxb4 {[%emt 0:00:01]} 1/2-1/2

[Event "Romania GP Final-Prel 2024"]
[Site "Alba Iulia"]
[Date "2024.11.25"]
[Round "4.8"]
[White "Nisipeanu, Liviu-Dieter"]
[Black "Sachilaru, Alexandru"]
[Result "1-0"]
[ECO "B12"]
[WhiteElo "2596"]
[BlackElo "2305"]
[Annotator "RC"]
[PlyCount "67"]
[EventDate "2024.11.22"]
[EventType "tourn"]
[EventCountry "ROU"]
[SourceTitle "playchess.com"]
[Source "ChessBase"]
[SourceQuality "1"]
[TimeControl "900+5"]

1. e4 {[%emt 0:00:02]} c6 {[%emt 0:00:02]} 2. d4 {[%emt 0:00:01]} d5 {[%emt 0:00:01]} 3. e5 {[%emt 0:00:01]} Bf5 {[%emt 0:00:02]} 4. h4 {[%emt 0:00:03]} a6 {[%emt 0:00:04]} 5. Be3 {[%emt 0:00:10]} c5 {[%emt 0:00:50]} 6. dxc5 {[%emt 0:03:29]} Nc6 {[%emt 0:00:11]} 7. Nf3 {[%emt 0:00:06]} Bg4 {[%emt 0:01:06]} 8. Be2 {[%emt 0:00:31]} e6 {[%emt 0:00:20]} 9. Nbd2 {[%emt 0:00:02]} Nge7 {[%emt 0:01:07]} 10. Nd4 {[%emt 0:03:47]} Bxe2 {[%emt 0:01:06]} 11. Qxe2 {[%emt 0:00:02]} Nxe5 {[%emt 0:00:48]} 12. O-O-O {[%emt 0:00:03]} N7c6 {[%emt 0:01:12]} 13. Nxc6 {[%emt 0:00:02]} Nxc6 {[%emt 0:00:02]} 14. Nb3 {[%emt 0:00:07]} Be7 {[%emt 0:00:27]} 15. h5 {[%emt 0:00:01]} Bf6 {[%emt 0:01:38]} 16. f4 {[%emt 0:00:34]} a5 {[%emt 0:00:35]} 17. a4 {[%emt 0:00:09]} Qd7 {[%emt 0:01:00]} 18. g4 {[%emt 0:00:39]} Nb4 {[%emt 0:00:38]} 19. g5 {[%emt 0:00:22]} Be7 {[%emt 0:00:05]} 20. Bd4 {[%emt 0:00:22]} Qxa4 {[%emt 0:01:33]} 21. h6 {[%emt 0:00:03]} Rg8 {[%emt 0:00:35]} 22. hxg7 {[%emt 0:01:53]} Qc6 {[%emt 0:01:23]} 23. Bf6 {[%emt 0:01:08]} a4 {[%emt 0:00:12]} 24. Nd4 {[%emt 0:00:01]} Qxc5 {[%emt 0:00:13]} 25. Qb5+ {[%emt 0:00:04]} Qxb5 {[%emt 0:00:25]} 26. Nxb5 {[%emt 0:00:01]} Kd7 {[%emt 0:00:07]} 27. Rxh7 {[%emt 0:00:13]} Bc5 {[%emt 0:00:26]} 28. Kb1 {[%emt 0:00:51]} Nc6 {[%emt 0:00:16]} 29. c4 {[%emt 0:00:39]} d4 {[%emt 0:00:36]} 30. Rh8 {[%emt 0:00:18]} Ne7 {[%emt 0:00:15]} 31. Nxd4 {[%emt 0:00:12]} Ng6 {[%emt 0:00:15]} 32. Nf5+ {[%emt 0:00:22]} Kc7 {[%emt 0:00:06]} 33. Rxg8 {[%emt 0:00:03]} Rxg8 {[%emt 0:00:01]} 34. Nh6 {[%emt 0:00:01]} 1-0

[Event "Romania GP Final-Prel 2024"]
[Site "Alba Iulia"]
[Date "2024.11.25"]
[Round "5.4"]
[White "Manolache, Marius"]
[Black "Kantor, Gergely"]
[Result "0-1"]
[ECO "E48"]
[WhiteElo "2407"]
[BlackElo "2554"]
[Annotator "RC"]
[PlyCount "37"]
[EventDate "2024.11.22"]
[EventType "tourn"]
[EventCountry "ROU"]
[SourceTitle "playchess.com"]
[Source "ChessBase"]
[SourceQuality "1"]
[TimeControl "900+5"]

1. d4 {[%emt 0:00:05]} Nf6 {[%emt 0:01:42]} 2. c4 {[%emt 0:00:03]} e6 {[%emt 0:00:01]} 3. Nc3 {[%emt 0:00:02]} Bb4 {[%emt 0:00:01]} 4. e3 {[%emt 0:00:01]} O-O {[%emt 0:00:01]} 5. Bd3 {[%emt 0:00:03]} d5 {[%emt 0:00:02]} 6. cxd5 {[%emt 0:00:19]} exd5 {[%emt 0:00:02]} 7. Nge2 {[%emt 0:00:04]} Re8 {[%emt 0:00:02]} 8. Qc2 {[%emt 0:00:33]} b6 {[%emt 0:00:55]} 9. a3 {[%emt 0:00:13]} Bf8 {[%emt 0:00:09]} 10. O-O {[%emt 0:00:17]} c5 {[%emt 0:00:12]} 11. Nf4 {[%emt 0:01:27]} Nc6 {[%emt 0:02:32]} 12. Bb5 {[%emt 0:01:33]} Bb7 {[%emt 0:00:11]} 13. dxc5 {[%emt 0:00:08]} bxc5 {[%emt 0:00:31]} 14. Rd1 {[%emt 0:00:31]} d4 {[%emt 0:00:22]} 15. Nce2 {[%emt 0:02:12]} Qb6 {[%emt 0:00:45]} 16. Bxc6 {[%emt 0:00:51]} Bxc6 {[%emt 0:00:33]} 17. exd4 {[%emt 0:00:01]} cxd4 {[%emt 0:00:05]} 18. Nxd4 {[%emt 0:00:25]} Qxd4 {[%emt 0:00:17]} 19. Be3 {[%emt 0:00:02]} 0-1